bitfinex-derivatives/quotes_SOLF0:USTF0_20250904
["timestamp","ask_amount","ask_price","bid_price","bid_amount"]
[1757016906520,0.02,202.98,202.92,8.03]
[1757016906709,0.02,202.98,202.93,3.86948658]
[1757016906710,1.95680138,202.94,202.93,3.86948658]
[1757016906908,1.95680138,202.94,202.92,8.03]
[1757016907107,1.95680138,202.94,202.88,8.03]
[1757016907409,1.95680138,202.89,202.88,8.03]
[1757016907707,1.97680138,202.89,202.83,8.03]
[1757016907913,1.95680138,202.84,202.77,5.00464863]
[1757016908113,1.95680138,202.85,202.78,8.03]
[1757016908414,0.02,202.88,202.84,0.03765449]
[1757016908713,0.02,202.86,202.75,9.98680138]
[1757016909007,4.19452348,202.85,202.75,8.03]
[1757016909207,4.19452348,202.85,202.68,9.17830559]
[1757016909208,1.95680138,202.81,202.8,8.03]
[1757016909411,4.19452348,202.81,202.8,8.03]
[1757016909604,4.22,202.93,202.8,8.53]
[1757016909810,1.95680138,202.92,202.85,1.95680138]
[1757016910011,12.9,202.95,202.87,1.95680138]
[1757016910012,1.95680138,202.94,202.87,1.95680138]
[1757016910413,1.95680138,202.94,202.86,9.98680138]
[1757016910607,4.22,202.97,202.89,8.03]
[1757016910807,4.22,202.97,202.9,1.95680138]
[1757016911008,1.95680138,202.96,202.91,8.03]
[1757016911209,1.95680138,202.96,202.9,1.95680138]
[1757016911210,1.95680138,202.92,202.84,8.03]
[1757016911410,4.22,202.93,202.78,9.7]
[1757016911411,1.95680138,202.89,202.83,8.03]
[1757016911616,18.92,202.97,202.85,8.03]
[1757016911813,18.92,202.97,202.84,1.95680138]
[1757016911814,1.95680138,202.93,202.87,8.03]
[1757016912417,1.95680138,202.91,202.87,8.03]
[1757016912615,1.95680138,202.91,202.84,8.03]
[1757016913009,1.95680138,202.91,202.85,1.95680138]
[1757016913314,4.22,202.94,202.86,8.03]
[1757016913315,1.95680138,202.92,202.86,8.03]
[1757016914019,4.22,202.94,202.86,8.03]
[1757016914310,7.85148228,203.06,202.78,9.7]
[1757016914311,4.22,202.98,202.89,1.95680138]
[1757016914508,1.95680138,202.97,202.9,8.03]
[1757016915712,4.22,203.02,202.9,8.03]
[1757016916018,317.22,203.05,202.84,4.4364]
[1757016916019,317.22,203.05,202.95,8.03]
[1757016916213,1.95680138,203.02,202.95,8.03]
[1757016917017,1.95680138,203.02,202.95,9.98680138]
[1757016917721,1.95680138,203.03,202.95,9.98680138]
[1757016917922,1.95680138,203.04,202.95,9.98680138]
[1757016918223,317.22,203.05,202.98,8.02]
[1757016918516,1.95680138,203.04,202.98,8.02]
[1757016918820,6.14680138,203.02,202.98,8.02]
[1757016919216,1.95680138,203.0,202.92,8.02]
[1757016919425,131.85148228,203.14,202.88,8.02]
[1757016919426,1.95680138,202.95,202.88,8.02]
[1757016919726,1.95680138,202.93,202.87,8.02]
[1757016921518,6.24,202.99,202.87,8.02]
[1757016921820,6.24,202.99,202.88,8.02]
[1757016922017,4.19,203.0,202.88,8.02]
[1757016922222,7.25190614,203.04,202.91,8.02]
[1757016922921,7.25190614,203.04,202.83,4.4367]
[1757016922922,4.19,203.04,202.83,8.02]
[1757016923222,4.19,203.04,202.82,69.0172]
[1757016923223,3.06190614,203.03,202.94,8.02]
[1757016923725,3.06190614,203.0,202.94,8.02]
[1757016923915,3.06190614,203.0,202.89,8.02]
[1757016924115,4.19,202.99,202.89,8.02]
[1757016924524,3.06190614,202.94,202.84,8.02]
[1757016924915,3.06190614,202.91,202.84,8.02]
[1757016927525,4.19,202.93,202.84,8.02]
[1757016929130,111.5,202.96,202.84,8.02]
[1757016929524,115.69,202.96,202.84,8.02]
[1757016929729,4.19,202.96,202.84,8.02]
[1757016929930,7.96575451,202.95,202.84,8.02]
[1757016930126,4.19,202.94,202.84,8.02]
[1757016934046,7.96575451,202.98,202.84,8.02]
[1757016934238,4.18,202.98,202.84,8.02]
[1757016934428,14.81,203.02,202.84,8.02]
[1757016934635,4.18,203.02,202.86,7.96575451]
[1757016934834,4.18,203.02,202.87,8.02]
[1757016935229,317.42,203.03,202.87,8.02]
[1757016935731,9.67067067,203.12,202.94,7.96575451]
[1757016935935,4.18,203.12,202.96,8.02]
[1757016936132,4.18,203.12,203.01,0.03345747]
[1757016936331,36.3,203.16,203.02,8.02]
[1757016937228,36.3,203.16,202.99,10.72]
[1757016937229,4.18,203.16,203.07,0.03598628]
[1757016937429,4.18,203.21,203.08,8.02]
[1757016941042,4.18,203.22,203.08,8.02]
[1757016941239,12.14575451,203.22,203.08,8.02]
[1757016941445,7.96575451,203.22,203.08,8.02]
[1757016941641,4.18,203.21,203.08,8.02]
[1757016942442,4.18,203.21,203.12,0.03375057]
[1757016943542,4.18,203.17,203.12,0.03375057]
[1757016944444,7.96575451,203.18,203.12,0.03375057]
[1757016945137,8.46575451,203.18,203.12,0.03375057]
[1757016945542,4.15,203.13,203.03,8.02]
[1757016945745,4.15,203.12,202.95,8.02]
[1757016946046,4.15,203.09,202.95,8.02]
[1757016948941,7.85148228,203.21,202.91,32.54]
[1757016948942,4.16,203.16,202.98,7.96575451]
[1757016949144,4.16,203.16,202.99,7.47]
[1757016949439,4.16,203.16,202.98,7.96575451]
[1757016949440,0.85693179,203.23,203.01,7.47]
[1757016949641,0.85693179,203.23,203.1,7.96575451]
[1757016949841,4.16,203.27,203.11,7.47]
[1757016950044,4.16,203.32,203.15,7.47]
[1757016950436,9.08,203.36,203.18,7.47]
[1757016950634,0.85648889,203.35,203.19,7.47]
[1757016950844,0.03555879,203.26,203.19,7.47]
[1757016951448,0.03555879,203.26,203.2,7.47]
[1757016952945,4.16,203.36,203.22,7.47]
[1757016954646,4.16,203.36,203.27,0.03368705]
[1757016956142,123.18,203.35,203.27,0.03368705]
[1757016957443,4.16,203.36,203.27,0.03368705]
[1757016959149,123.18,203.39,203.27,0.03368705]
[1757016959150,4.2,203.39,203.28,7.47]
[1757016960148,0.85613068,203.42,203.32,7.47]
[1757016960344,5.05613068,203.42,203.32,7.47]
[1757016960544,4.2,203.41,203.35,0.03419764]
[1757016960839,4.2,203.41,203.27,7.47]
[1757016961250,4.2,203.41,203.32,0.03554636]
[1757016962643,4.2,203.38,203.32,0.03554636]
[1757016962838,69.04,203.37,203.32,0.03554636]
[1757016963045,4.16,203.34,203.18,7.47]
[1757016963549,12.4,203.33,203.18,7.47]
[1757016964041,4.16,203.32,203.18,7.47]
[1757016964648,22.4,203.32,203.18,7.47]
[1757016965049,4.16,203.32,203.18,7.47]
[1757016965851,0.03218179,203.27,203.18,7.47]
[1757016967856,0.03218179,203.27,203.2,0.03114684]
[1757016968056,0.03218179,203.27,203.21,7.47]
[1757016968553,0.03218179,203.27,203.2,0.03114684]
[1757016969153,4.16,203.26,203.2,0.03114684]
[1757016969555,42.56,203.25,203.2,0.03114684]
[1757016969861,76.98,203.26,203.2,0.03114684]
[1757016970558,4.16,203.25,203.2,0.03114684]
[1757016970764,76.98,203.26,203.2,0.03114684]
[1757016971056,4.16,203.25,203.2,0.03114684]
[1757016971282,76.98,203.26,203.2,0.03114684]
[1757016971764,4.16,203.25,203.2,0.03114684]
[1757016971958,76.98,203.26,203.2,0.03114684]
[1757016972360,4.16,203.25,203.2,0.03114684]
[1757016972560,124.03218179,203.27,203.2,0.03114684]
[1757016972865,127.4,203.26,203.2,0.03114684]
[1757016973763,7.96575451,203.24,203.2,0.03114684]
[1757016973963,4.16,203.23,203.2,0.03114684]
[1757016974563,4.16,203.23,203.09,7.47]
[1757016974564,4.16,203.22,203.09,7.47]
[1757016974762,31.16,203.21,203.09,7.47]
[1757016975764,4.16,203.2,203.09,7.47]
[1757016976165,0.03160744,203.17,203.09,7.47]
[1757016977661,4.19160744,203.17,203.09,7.47]
[1757016977867,0.03160744,203.17,203.09,7.47]
[1757016981462,4.92165395,203.17,203.09,7.47]
[1757016981864,4.92165395,203.17,203.0,19.64]
[1757016982069,4.89004651,203.14,203.01,7.81]
[1757016982768,0.03195071,203.1,203.01,7.81]
[1757016990774,4.16,203.09,203.01,7.81]
[1757016993877,4.16,203.05,202.94,7.81]
[1757016994473,14.81,203.11,202.94,7.81]
[1757016994676,4.89004651,203.09,202.94,7.81]
[1757016995274,4.16,203.1,202.96,4.89004651]
[1757016995472,4.16,203.1,202.97,7.81]
[1757016995672,0.03257767,203.05,202.97,7.81]
[1757016996274,0.03257767,203.05,203.0,7.81]
[1757016996675,4.94,203.14,203.0,7.81]
[1757016997192,0.03603312,203.09,203.0,7.81]
[1757017000482,4.92607963,203.09,203.0,7.81]
[1757017001976,4.16,203.08,203.0,7.81]
[1757017002177,4.16,203.05,202.91,7.81]
[1757017002883,9.05004651,203.09,202.94,7.81]
[1757017003879,0.03685606,203.04,202.94,7.81]
[1757017004078,4.89004651,203.01,202.94,7.81]
[1757017004378,4.16,203.0,202.83,7.81]
[1757017004586,4.16,203.0,202.86,7.81]
[1757017004782,4.89004651,203.02,202.86,7.81]
[1757017005284,0.0327935,202.96,202.88,7.81]
[1757017007585,4.16,203.04,202.88,12.70004651]
[1757017007782,4.16,203.04,202.87,25.28]
[1757017007783,322.17004651,203.08,202.92,8.03]
[1757017007983,317.28,203.08,202.95,8.03]
[1757017008283,4.21,203.09,202.95,48.32]
[1757017008486,4.89004651,203.11,202.96,8.03]
[1757017008788,4.89004651,203.11,202.98,8.03]
[1757017008988,4.21,203.13,202.98,8.03]
[1757017011187,4.89004651,203.16,202.98,8.03]
[1757017011493,4.21,203.15,203.01,8.03]
[1757017012693,0.03660502,203.1,203.06,0.03117069]
[1757017012895,0.03660502,203.1,203.06,8.06117069]
[1757017014693,0.03660502,203.1,203.07,8.03]
[1757017014989,0.03660502,203.1,203.06,0.03117069]
[1757017015292,0.03660502,203.1,203.07,8.03]
[1757017015492,0.03660502,203.1,203.06,0.03117069]
[1757017015907,0.03660502,203.1,203.07,8.03]
[1757017016286,0.03660502,203.1,203.06,0.03117069]
[1757017017296,0.03660502,203.1,203.07,8.03]
[1757017017492,0.03660502,203.1,203.06,0.03117069]
[1757017018894,0.03660502,203.1,203.07,8.03]
[1757017019195,0.03660502,203.1,203.06,0.03117069]
[1757017019892,0.03660502,203.1,203.07,8.03]
[1757017020086,4.24660502,203.1,203.06,0.03117069]
[1757017020285,4.21,203.09,203.06,0.03117069]
[1757017020484,0.03660502,203.1,203.06,0.03117069]
[1757017020695,4.92665153,203.1,203.06,0.03117069]
[1757017021190,4.21,203.09,203.06,0.03117069]
[1757017021396,4.92665153,203.1,203.06,0.03117069]
[1757017021695,9.10004651,203.07,202.95,8.03]
[1757017023096,0.03498409,203.03,202.95,8.03]
[1757017034003,4.21,203.02,202.95,8.03]
[1757017034193,4.89004651,203.01,202.88,34.62]
[1757017034397,4.89004651,203.01,202.89,8.03]
[1757017034596,4.21,203.02,202.89,8.03]
[1757017035903,0.03788706,202.98,202.89,8.03]
[1757017037505,1.95961994,202.92,202.89,8.03]
[1757017038604,1.95961994,202.92,202.8,4.14745299]
[1757017038805,1.95961994,202.88,202.82,8.02]
[1757017039300,0.03429869,202.87,202.81,1.95961994]
[1757017039606,0.03429869,202.87,202.78,8.02]
[1757017047607,4.24,202.86,202.78,8.02]
[1757017051715,0.03429869,202.87,202.78,8.02]
[1757017052611,4.24,202.86,202.78,8.02]
[1757017054420,0.03429869,202.87,202.78,8.02]
[1757017055724,4.24,202.86,202.78,8.02]
[1757017056113,4.24,202.86,202.7,8.02]
[1757017056346,4.24,202.83,202.7,8.02]
[1757017057320,0.03728597,202.79,202.7,8.02]
[1757017059521,0.03728597,202.79,202.73,8.02]
[1757017060427,3.06516958,202.9,202.72,3.06516958]
[1757017060428,3.06516958,202.87,202.76,8.02]
[1757017060629,4.24,202.89,202.79,8.02]
[1757017060929,3.06516958,202.9,202.79,8.02]
[1757017061532,4.27,202.93,202.79,8.02]
[1757017061725,123.2,202.94,202.79,8.02]
[1757017062026,4.27,202.91,202.79,8.02]
[1757017062419,4.27,202.91,202.83,0.03112609]
[1757017062822,7.96366319,202.88,202.83,0.03112609]
[1757017063021,127.47,202.87,202.83,0.03112609]
[1757017063223,123.2,202.87,202.83,0.03112609]
[1757017063530,4.27,202.87,202.83,0.03112609]
[1757017064017,7.96366319,202.88,202.83,0.03112609]
[1757017064224,4.27,202.87,202.83,0.03112609]
[1757017065128,7.96366319,202.88,202.83,0.03112609]
[1757017065329,123.14,202.87,202.83,0.03112609]
[1757017065731,4.27,202.86,202.83,0.03112609]
[1757017065933,123.64,202.87,202.83,0.03112609]
[1757017066125,4.27,202.86,202.83,0.03112609]
[1757017066326,123.64,202.87,202.83,0.03112609]
[1757017066527,7.96366319,202.88,202.83,0.03112609]
[1757017066528,4.27,202.86,202.83,0.03112609]
[1757017066825,4.27,202.84,202.83,0.03112609]
[1757017067736,7.96366319,202.88,202.83,0.03112609]
[1757017068027,4.24,202.86,202.83,0.03112609]
[1757017068226,123.18,202.87,202.83,0.03112609]
[1757017068427,4.74,202.86,202.83,0.03112609]
[1757017068628,4.24,202.85,202.83,0.03112609]
[1757017068827,123.18,202.87,202.83,0.03112609]
[1757017069335,4.24,202.86,202.83,0.03112609]
[1757017069726,123.18,202.87,202.83,0.03112609]
[1757017069930,4.24,202.86,202.83,0.03112609]
[1757017070127,123.68,202.87,202.74,7.49]
[1757017070128,4.24,202.83,202.74,7.49]
[1757017071032,4.24,202.87,202.74,7.49]
[1757017071235,44.58,202.86,202.74,7.49]
[1757017071435,0.03697619,202.83,202.74,7.49]
[1757017082049,4.27697619,202.83,202.74,7.49]
[1757017082646,0.03697619,202.83,202.74,10.55532672]
[1757017082846,0.03697619,202.83,202.75,7.49]
[1757017084549,0.03697619,202.83,202.77,3.06532672]
[1757017084952,0.03697619,202.83,202.78,7.49]
[1757017085554,0.03697619,202.83,202.75,11.59642231]
[1757017085754,0.03697619,202.83,202.77,7.49]
[1757017091258,0.03697619,202.83,202.79,3.06532672]
[1757017091855,0.03697619,202.83,202.8,7.49]
[1757017092060,0.03697619,202.83,202.79,3.06532672]
[1757017092259,0.03697619,202.83,202.8,7.49]
[1757017094663,0.03697619,202.83,202.79,3.06532672]
[1757017095064,4.24,202.92,202.82,3.06532672]
[1757017095266,330.47599739,202.96,202.85,3.06532672]
[1757017095465,324.98532672,202.96,202.86,7.49]
[1757017095657,330.47599739,202.96,202.86,7.49]
[1757017096160,4.28,202.92,202.82,7.49]
[1757017097063,317.64,202.96,202.85,7.49]
[1757017097064,5.49067067,202.95,202.85,7.49]
[1757017097365,324.98532672,202.96,202.85,7.52440262]
[1757017098161,321.92,202.96,202.85,7.52440262]
[1757017100171,321.92,202.96,202.87,3.06532672]
[1757017100470,4.28,202.96,202.88,7.52]
[1757017100667,3.06532672,202.98,202.88,7.52]
[1757017101061,3.06532672,202.98,202.91,0.03373856]
[1757017103573,4.28,202.98,202.91,0.03373856]
[1757017105572,6.23918935,202.95,202.91,0.03373856]
[1757017109479,4.28,202.94,202.91,0.03373856]
[1757017112581,4.28,202.92,202.91,0.03373856]
[1757017116791,1.95918935,202.94,202.91,0.03373856]
[1757017116991,6.23918935,202.92,202.91,0.03373856]
[1757017121292,4.28,202.92,202.91,0.03373856]
[1757017121886,4.28,202.97,202.91,0.03373856]
[1757017122086,4.28,202.96,202.92,7.52]
[1757017122488,1.95918935,202.97,202.92,7.52]
[1757017122690,4.28,202.96,202.92,7.52]
[1757017122894,1.95918935,202.97,202.92,7.52]
[1757017123087,4.28,202.96,202.92,7.52]
[1757017123287,6.23918935,202.97,202.91,0.03373856]
[1757017123999,4.28,202.93,202.91,0.03373856]
[1757017124200,4.28,202.94,202.91,0.03373856]
[1757017124402,6.23918935,202.96,202.92,7.52]
[1757017124797,6.23918935,203.0,202.93,1.95918935]
[1757017125095,4.28,203.0,202.95,1.95918935]
[1757017125301,4.28,203.0,202.96,7.52]
[1757017125600,6.23918935,203.0,202.95,1.95918935]
[1757017125799,37.86,203.01,202.95,1.95918935]
[1757017126599,4.28,203.02,202.95,1.95918935]
[1757017127302,1.95918935,203.0,202.95,1.95918935]
[1757017127601,4.28,202.99,202.95,9.89918935]
[1757017127799,1.95918935,203.0,202.95,1.95918935]
[1757017128196,4.28,202.99,202.95,1.95918935]
[1757017128398,4.28,202.99,202.93,1.95918935]
[1757017129706,4.28,202.99,202.94,7.97146956]
[1757017130296,6.23918935,203.0,202.94,7.97146956]
[1757017131203,46.37067067,203.06,202.94,7.97146956]
[1757017131204,4.28,202.95,202.94,0.03146956]
[1757017134502,4.78,202.95,202.86,7.94]
[1757017134700,1.95918935,202.91,202.85,9.89918935]
[1757017135806,0.03191331,202.9,202.85,1.95918935]
[1757017136104,0.03191331,202.9,202.86,7.94]
[1757017136807,0.03191331,202.9,202.85,1.95918935]
[1757017137002,0.03191331,202.9,202.86,7.94]
[1757017137202,0.03191331,202.9,202.85,1.95918935]
[1757017137400,0.03191331,202.9,202.86,7.94]
[1757017138107,0.03191331,202.9,202.87,1.95918935]
[1757017138301,0.03191331,202.9,202.88,7.94]
[1757017138901,0.03191331,202.9,202.87,1.95918935]
[1757017139099,0.03191331,202.9,202.88,7.94]
[1757017139505,0.03191331,202.9,202.87,1.95918935]
[1757017139904,0.03191331,202.9,202.88,7.94]
[1757017140106,0.03191331,202.9,202.87,1.95918935]
[1757017140407,0.03191331,202.9,202.88,7.94]
[1757017141702,0.03191331,202.9,202.87,7.94]
[1757017142006,0.03191331,202.9,202.86,1.95918935]
[1757017142208,0.03191331,202.9,202.87,7.94]
[1757017143104,0.03191331,202.9,202.86,1.95918935]
[1757017144509,0.03191331,202.9,202.86,9.89918935]
[1757017144804,0.03191331,202.9,202.87,7.94]
[1757017145009,4.28,202.89,202.86,0.03450426]
[1757017145203,1.99110266,202.9,202.86,0.03450426]
[1757017145504,0.03191331,202.9,202.86,0.03450426]
[1757017145719,0.03191331,202.9,202.87,7.94]
[1757017146703,0.03191331,202.9,202.89,7.94]
[1757017147409,0.03191331,202.9,202.86,0.03450426]
[1757017147410,6.26918935,202.9,202.86,0.03450426]
[1757017147603,1.95918935,202.87,202.86,0.03450426]
[1757017147804,1.95918935,202.87,202.75,63.43460446]
[1757017147805,6.26918935,202.87,202.79,12.04642231]
[1757017148003,1.95918935,202.85,202.79,9.89918935]
[1757017148702,1.95918935,202.85,202.81,7.94]
[1757017149106,6.26918935,202.85,202.81,7.94]
[1757017153712,1.95918935,202.85,202.81,7.94]
[1757017153911,1.95918935,202.87,202.81,7.94]
[1757017154708,1.95918935,202.9,202.84,7.94]
[1757017155213,1.95918935,202.9,202.85,0.03324164]
[1757017155414,6.26918935,202.9,202.85,7.97324164]
[1757017155611,1.95918935,202.92,202.86,7.94]
[1757017155807,6.26918935,202.95,202.88,7.94]
[1757017156013,4.31,202.95,202.89,1.95918935]
[1757017156311,1.95918935,202.97,202.9,0.03118866]
[1757017158014,4.31,202.98,202.9,0.03118866]
[1757017158015,1.95918935,202.95,202.9,0.03118866]
[1757017158213,6.26918935,202.95,202.9,8.14118866]
[1757017158615,4.31,202.94,202.9,8.14118866]
[1757017159014,1.95918935,202.95,202.91,8.11]
[1757017159220,6.26918935,202.95,202.9,8.14118866]
[1757017160112,4.31,202.94,202.9,8.14118866]
[1757017160612,1.95918935,202.95,202.9,0.03118866]
[1757017160817,4.31,202.92,202.9,0.03118866]
[1757017164813,1.95918935,202.93,202.9,0.03118866]
[1757017165015,4.31,202.92,202.9,0.03118866]
[1757017166821,1.95918935,202.93,202.9,0.03118866]
[1757017167125,4.31,202.92,202.9,0.03118866]
[1757017169121,3.06205719,202.95,202.9,0.03118866]
[1757017169323,3.06205719,202.93,202.9,0.03118866]
[1757017169720,4.31,202.92,202.9,0.03118866]
[1757017170027,3.06205719,202.93,202.9,0.03118866]
[1757017170219,4.31,202.92,202.9,0.03118866]
[1757017170820,3.0998032,202.93,202.82,8.11]
[1757017171024,4.31,202.87,202.82,8.11]
[1757017171232,4.31,202.87,202.77,8.11]
[1757017172130,0.03135368,202.84,202.77,8.11]
[1757017175028,0.03135368,202.84,202.79,8.11]
[1757017179829,0.03135368,202.84,202.78,11.17205719]
[1757017180632,0.03135368,202.84,202.78,8.11]
[1757017183452,0.03135368,202.84,202.79,8.11]
[1757017184034,0.03135368,202.84,202.82,8.11]
[1757017184433,7.37205719,202.93,202.84,8.11]
[1757017184641,7.37205719,202.93,202.84,3.06205719]
[1757017184842,7.37205719,202.93,202.85,8.11]
[1757017185343,4.31,202.93,202.85,8.11]
[1757017185642,4.31,202.93,202.87,0.03432981]
[1757017185839,4.31,202.93,202.88,8.11]
[1757017186046,4.31,202.93,202.87,0.03432981]
[1757017186341,4.31,202.93,202.87,8.14432981]
[1757017189545,4.35,202.97,202.87,8.14432981]
[1757017189750,4.35,202.97,202.88,8.08]
[1757017193541,0.85786126,203.01,202.9,3.06205719]
[1757017193542,4.35,203.0,202.9,3.06205719]
[1757017193747,4.35,203.0,202.91,8.08]
[1757017194045,4.35,203.0,202.9,3.06205719]
[1757017194046,4.35,203.0,202.93,3.09359897]
[1757017194242,4.35,203.0,202.94,8.08]
[1757017197343,4.35,203.0,202.93,0.03154178]
[1757017197743,3.06205719,202.95,202.93,0.03154178]
[1757017198045,4.35,202.94,202.93,0.03154178]
[1757017200145,3.06205719,202.98,202.93,0.03154178]
[1757017200349,3.06205719,202.96,202.93,0.03154178]
[1757017200655,4.35,202.95,202.93,0.03154178]
[1757017201249,3.06205719,202.96,202.93,0.03154178]
[1757017201447,4.35,202.95,202.93,0.03154178]
[1757017202153,7.41205719,202.99,202.93,8.11154178]
[1757017202956,122.44,203.03,202.93,8.11154178]
[1757017202957,3.06205719,202.96,202.93,0.03154178]
[1757017203454,4.35,202.95,202.93,0.03154178]
[1757017204056,3.06205719,202.96,202.93,0.03154178]
[1757017205250,4.35,202.95,202.93,0.03154178]
[1757017205651,3.06205719,202.96,202.93,0.03154178]
[1757017205959,4.35,202.95,202.93,0.03154178]
[1757017206154,3.06205719,202.96,202.93,0.03154178]
[1757017206649,4.35,202.95,202.93,0.03154178]
[1757017206849,3.06205719,202.96,202.93,0.03154178]
[1757017207861,4.35,203.02,202.93,0.03154178]
[1757017208059,3.06205719,203.01,202.93,8.11154178]
[1757017208362,4.35,203.02,202.93,8.11154178]
[1757017208664,4.35,203.06,202.94,8.08]
[1757017208860,7.41205719,203.06,202.94,8.08]
[1757017209363,7.41205719,203.06,202.94,3.06205719]
[1757017209562,4.35,203.06,202.95,8.08]
[1757017209758,3.06205719,203.08,202.95,8.08]
[1757017210082,4.35,203.1,203.0,8.08]
[1757017210962,3.06205719,203.06,202.94,3.06205719]
[1757017211158,4.35,203.06,202.95,8.08]
[1757017211361,7.41205719,203.06,202.95,8.08]
[1757017213562,3.06205719,203.06,202.95,8.08]
[1757017213868,3.06205719,203.06,202.91,43.04]
[1757017213869,3.06205719,203.0,202.91,8.08]
[1757017214071,4.35,202.99,202.91,8.08]
[1757017215061,3.06205719,203.02,202.91,8.08]
[1757017215465,4.35,203.03,202.91,8.08]
[1757017216466,7.95536265,203.03,202.91,8.08]
[1757017216863,4.35,203.02,202.91,8.08]
[1757017217663,4.34,203.02,202.91,8.08]
[1757017218762,4.35,203.02,202.91,8.08]
[1757017227173,4.35,203.02,202.94,0.03301626]
[1757017227376,4.35,203.02,202.94,7.83301626]
[1757017228071,4.35,203.01,202.94,7.83301626]
[1757017228270,4.35,203.01,202.94,0.03301626]
[1757017231169,4.89551756,203.02,202.94,0.03301626]
[1757017231170,4.89551756,202.99,202.94,0.03301626]
[1757017231978,4.34,202.98,202.94,0.03301626]
[1757017232168,4.89551756,202.99,202.94,0.03301626]
[1757017232365,4.34,202.98,202.94,0.03301626]
[1757017232668,4.89551756,202.99,202.94,0.03301626]
[1757017233266,4.34,202.98,202.94,0.03301626]
[1757017233469,4.89551756,202.99,202.94,0.03301626]
[1757017233975,4.34,202.98,202.94,0.03301626]
[1757017234173,4.89551756,202.99,202.94,0.03301626]
[1757017234371,4.34,202.98,202.94,0.03301626]
[1757017235374,4.34,203.0,202.94,0.03301626]
[1757017235575,1.95897872,202.96,202.94,0.03301626]
[1757017239277,6.29897872,202.96,202.94,0.03301626]
[1757017242387,4.34,202.96,202.94,0.03301626]
[1757017242583,6.29897872,202.96,202.94,0.03301626]
[1757017243992,1.95897872,202.96,202.94,0.03301626]
[1757017244182,6.29897872,202.96,202.94,0.03301626]
[1757017246092,4.34,203.03,202.94,0.03301626]
[1757017246288,332.21,203.09,202.94,0.03301626]
[1757017246289,1.95897872,203.0,202.94,0.03301626]
[1757017246791,1.95897872,203.0,202.93,9.75897872]
[1757017247185,6.29897872,203.0,202.96,7.8]
[1757017247694,4.34,202.99,202.96,7.8]
[1757017249084,1.95897872,202.98,202.95,0.03494209]
[1757017249396,6.30897872,202.96,202.95,0.03494209]
[1757017250484,6.30897872,202.98,202.95,0.03494209]
[1757017250687,4.35,202.97,202.95,0.03494209]
[1757017251692,1.95897872,202.98,202.95,0.03494209]
[1757017251899,6.30897872,202.96,202.95,0.03494209]
[1757017254296,4.35,202.96,202.95,0.03494209]
[1757017256097,6.30897872,202.96,202.95,0.03494209]
[1757017256500,4.35,202.97,202.95,0.03494209]
[1757017256695,9.84067067,203.02,202.96,8.04]
[1757017256897,4.35,203.02,202.96,8.04]
[1757017257119,4.35,203.02,202.96,9.99897872]
[1757017266504,1.95897872,203.01,202.96,9.99897872]
[1757017266705,4.35,203.0,202.97,8.04]
[1757017267704,4.35,203.0,202.96,8.04]
[1757017267907,1.95897872,203.01,202.95,1.99392081]
[1757017268410,1.95897872,203.01,202.96,8.04]
[1757017268607,1.95897872,203.01,202.95,1.99392081]
[1757017268803,1.95897872,203.01,202.96,8.04]
[1757017269004,1.95897872,203.01,202.95,1.99392081]
[1757017269199,1.95897872,203.01,202.96,8.04]
[1757017269597,1.95897872,203.02,202.96,8.04]
[1757017270204,4.35,203.03,202.98,8.04]
[1757017270501,6.30897872,203.06,202.99,1.95897872]
[1757017270708,322.91067067,203.09,203.03,1.95897872]